[Event "12th SRB-ch Women 2018"]
[Site "Kragujevac"]
[Date "2018.03.17"]
[Round "1"]
[White "Djukic, Sandra"]
[Black "Chelushkina, Irina"]
[Result "1/2-1/2"]
[ECO "D33"]
[WhiteElo "2174"]
[BlackElo "2261"]
[Annotator "NA RC"]
[PlyCount "87"]
[EventDate "2018.??.??"]
[EventType "tourn"]
[EventCountry "SRB"]
[SourceTitle "playchess.com"]
[Source "ChessBase"]
[SourceQuality "1"]
[TimeControl "40/5400+30:1800+30"]

1. d4 {[%emt 0:00:00]} e6 {[%emt 0:00:07]} 2. c4 {[%emt 0:00:00]} d5 {[%emt 0:00:18]} 3. Nc3 {[%emt 0:00:12]} c5 {[%emt 0:00:14]} 4. cxd5 {[%emt 0:00:56]} exd5 {[%emt 0:00:06]} 5. Nf3 {[%emt 0:00:20]} Nc6 {[%emt 0:00:04]} 6. g3 {[%emt 0:01:15]} c4 {[%emt 0:01:42]} 7. Bg2 {[%emt 0:01:10]} Bb4 {[%emt 0:00:07]} 8. O-O {[%emt 0:00:22]} Nge7 {[%emt 0:00:04]} 9. Ne5 {[%emt 0:12:10]} O-O {[%emt 0:04:24]} 10. Nxc6 {[%emt 0:00:49]} bxc6 {[%emt 0:00:05]} 11. e4 {[%emt 0:04:07]} dxe4 {[%emt 0:23:47]} 12. Nxe4 {[%emt 0:05:43]} Be6 {[%emt 0:01:09]} 13. Bg5 {[%emt 0:32:27]} h6 {[%emt 0:10:55]} 14. Bd2 {[%emt 0:16:26]} Qa5 {[%emt 0:10:55]} 15. Bxh6 {[%emt 0:07:51]} gxh6 {[%emt 0:18:52]} 16. a3 {[%emt 0:00:10]} Kg7 {[%emt 0:05:45]} 17. axb4 {[%emt 0:02:02]} Qxb4 {[%emt 0:00:00]} 18. Nc5 {[%emt 0:02:37]} Bf5 {[%emt 0:04:15]} 19. g4 {[%emt 0:06:18]} Bd3 {[%emt 0:02:07]} 20. Nxd3 {[%emt 0:01:03]} cxd3 {[%emt 0:00:01]} 21. Qxd3 {[%emt 0:00:08]} Rad8 {[%emt 0:02:48]} 22. Rfd1 {[%emt 0:04:15]} c5 {[%emt 0:06:06]} 23. d5 {[%emt 0:00:31]} Qxb2 {[%emt 0:00:35]} 24. Rxa7 {[%emt 0:00:28]} Ng6 {[%emt 0:00:04]} 25. Qf3 {[%emt 0:00:34]} Rd6 {[%emt 0:04:16]} 26. Rc7 {[%emt 0:00:25]} Qc2 {[%emt 0:02:49]} 27. Qd3 {[%emt 0:00:31]} Qxd3 {[%emt 0:00:34]} 28. Rxd3 {[%emt 0:00:05]} Nf4 {[%emt 0:00:07]} 29. Rd1 {[%emt 0:00:58]} Ne6 {[%emt 0:00:13]} 30. Rc6 {[%emt 0:00:29]} Rxc6 {[%emt 0:00:27]} 31. dxc6 {[%emt 0:00:06]} Nd4 {[%emt 0:00:01]} 32. Kf1 {[%emt 0:00:23]} Rc8 {[%emt 0:00:05]} 33. Rc1 {[%emt 0:00:23]} Nxc6 {[%emt 0:00:04]} 34. Rxc5 {[%emt 0:00:10]} Ne7 {[%emt 0:00:04]} 35. Rxc8 {[%emt 0:00:24]} Nxc8 {[%emt 0:00:01]} 36. f4 {[%emt 0:00:40]} Ne7 {[%emt 0:01:14]} 37. Be4 {[%emt 0:00:25]} Nc8 {[%emt 0:02:04]} 38. Kf2 {[%emt 0:00:20]} Nd6 {[%emt 0:00:10]} 39. Bd3 {[%emt 0:00:30]} f6 {[%emt 0:00:06]} 40. Ke3 {[%emt 0:00:34]} Kf7 {[%emt 0:30:07]} 41. Kd4 {[%emt 0:30:52]} Ke7 {[%emt 0:00:07]} 42. Kd5 {[%emt 0:01:01]} Ne8 {[%emt 0:00:34]} 43. h4 {[%emt 0:00:00]} Nd6 {[%emt 0:00:00]} 44. g5 {[%emt 0:00:00]} 1/2-1/2

[Event "12th SRB-ch Women 2018"]
[Site "Kragujevac"]
[Date "2018.03.18"]
[Round "2"]
[White "Gajcin, Marina"]
[Black "Eric, Jovana"]
[Result "1/2-1/2"]
[ECO "B06"]
[WhiteElo "2295"]
[BlackElo "2265"]
[Annotator "RC"]
[PlyCount "160"]
[EventDate "2018.??.??"]
[EventType "tourn"]
[EventCountry "SRB"]
[SourceTitle "playchess.com"]
[Source "ChessBase"]
[SourceQuality "1"]
[TimeControl "40/5400+30:1800+30"]

1. e4 {[%emt 0:00:00]} g6 {[%emt 0:00:06]} 2. d4 {[%emt 0:03:22]} Bg7 {[%emt 0:00:18]} 3. Nc3 {[%emt 0:00:32]} c6 {[%emt 0:00:22]} 4. Be3 {[%emt 0:04:12]} d5 {[%emt 0:01:47]} 5. h3 {[%emt 0:07:00]} dxe4 {[%emt 0:03:50]} 6. Nxe4 {[%emt 0:00:08]} Nd7 {[%emt 0:00:18]} 7. Qd2 {[%emt 0:02:24]} Ngf6 {[%emt 0:00:49]} 8. Nc3 {[%emt 0:04:09]} O-O {[%emt 0:05:41]} 9. Bh6 {[%emt 0:02:31]} Bxh6 {[%emt 0:05:20]} 10. Qxh6 {[%emt 0:00:06]} Nb6 {[%emt 0:00:03]} 11. Nf3 {[%emt 0:03:01]} Bf5 {[%emt 0:03:55]} 12. Qd2 {[%emt 0:12:22]} Nbd5 {[%emt 0:03:57]} 13. Bd3 {[%emt 0:03:46]} Bxd3 {[%emt 0:04:47]} 14. Qxd3 {[%emt 0:03:01]} Qa5 {[%emt 0:12:06]} 15. O-O {[%emt 0:00:27]} Nf4 {[%emt 0:02:12]} 16. Qe3 {[%emt 0:06:56]} Qf5 {[%emt 0:03:59]} 17. Rfe1 {[%emt 0:06:20]} g5 {[%emt 0:08:38]} 18. Qe5 {[%emt 0:04:50]} Qxe5 {[%emt 0:32:43] Qxe5 ([%clk 0:08:39]} 19. dxe5 {[%emt 0:09:33]} N6d5 {[%emt 0:00:05]} 20. Nxd5 {[%emt 0:00:47]} cxd5 {[%emt 0:00:05]} 21. Nxg5 {[%emt 0:00:39]} Rac8 {[%emt 0:00:06]} 22. c3 {[%emt 0:06:02]} Rc5 {[%emt 0:01:07]} 23. Rad1 {[%emt 0:03:00]} h6 {[%emt 0:00:12]} 24. Nf3 {[%emt 0:00:06]} Rfc8 {[%emt 0:00:27]} 25. Nd4 {[%emt 0:01:02]} e6 {[%emt 0:01:07]} 26. Kf1 {[%emt 0:01:12]} Kf8 {[%emt 0:01:48]} 27. g3 {[%emt 0:00:22]} Ng6 {[%emt 0:00:30]} 28. Re3 {[%emt 0:01:29]} Ke8 {[%emt 0:00:54]} 29. Ke2 {[%emt 0:00:15]} Kd7 {[%emt 0:01:29]} 30. f4 {[%emt 0:00:07]} Ne7 {[%emt 0:00:09]} 31. g4 {[%emt 0:00:37]} Nc6 {[%emt 0:01:06]} 32. Nxc6 {[%emt 0:02:27]} R8xc6 {[%emt 0:00:05]} 33. h4 {[%emt 0:00:50]} Rb6 {[%emt 0:00:44]} 34. Rd2 {[%emt 0:00:57]} Rcb5 {[%emt 0:00:50]} 35. b4 {[%emt 0:00:51]} Ra6 {[%emt 0:00:47]} 36. h5 {[%emt 0:00:20]} Rc6 {[%emt 0:01:11]} 37. g5 {[%emt 0:02:31]} Rc8 {[%emt 0:00:09]} 38. Rg3 {[%emt 0:01:39]} Ke7 {[%emt 0:00:28]} 39. gxh6 {[%emt 0:04:07]} Rh8 {[%emt 0:00:04]} 40. Kf3 {[%emt 0:00:06]} Rxh6 {[%emt 0:30:12]} 41. Kg4 {[%emt 0:32:39]} Rb6 {[%emt 0:01:24]} 42. Kg5 {[%emt 0:00:05]} Rh7 {[%emt 0:00:04]} 43. h6 {[%emt 0:00:00]} Rc6 {[%emt 0:00:00]} 44. Kh5 {[%emt 0:00:00]} Rh8 {[%emt 0:00:00]} 45. Rdd3 {[%emt 0:00:00]} Rc4 {[%emt 0:00:00]} 46. Rd4 {[%emt 0:00:00]} Rc6 {[%emt 0:00:00]} 47. Rd2 {[%emt 0:00:00]} Rc4 {[%emt 0:00:00]} 48. Rf3 {[%emt 0:00:00]} Re4 {[%emt 0:00:00]} 49. Rg2 {[%emt 0:00:00]} Re1 {[%emt 0:00:00]} 50. Rh3 {[%emt 0:00:00]} Rf1 {[%emt 0:00:00]} 51. Rg4 {[%emt 0:00:00]} b5 {[%emt 0:00:00]} 52. Kg5 {[%emt 0:00:00]} Rg8+ {[%emt 0:00:00]} 53. Kh4 {[%emt 0:00:00]} Rh8 {[%emt 0:00:00]} 54. Kg3 {[%emt 0:00:00]} Rc1 {[%emt 0:00:00]} 55. Kh2 {[%emt 0:00:00]} Kf8 {[%emt 0:00:00]} 56. Rg2 {[%emt 0:00:00]} Rf1 {[%emt 0:00:00]} 57. a4 {[%emt 0:01:23]} bxa4 {[%emt 0:00:00]} 58. Ra2 {[%emt 0:00:03]} Rxf4 {[%emt 0:00:00]} 59. Rxa4 {[%emt 0:00:14]} Kg8 {[%emt 0:00:43]} 60. Rxa7 {[%emt 0:02:54]} Kh7 {[%emt 0:00:06]} 61. Ra2 {[%emt 0:01:49]} Rg8 {[%emt 0:03:26]} 62. Rg2 {[%emt 0:03:47]} Rxg2+ {[%emt 0:02:18]} 63. Kxg2 {[%emt 0:00:01]} d4 {[%emt 0:00:06]} 64. Rf3 {[%emt 0:02:52]} Rg4+ {[%emt 0:01:55]} 65. Kh3 {[%emt 0:00:04]} Re4 {[%emt 0:00:05]} 66. cxd4 {[%emt 0:00:47]} Rxd4 {[%emt 0:00:38]} 67. Rb3 {[%emt 0:00:33]} Kxh6 {[%emt 0:00:27]} 68. b5 {[%emt 0:00:16]} Kg5 {[%emt 0:00:44]} 69. b6 {[%emt 0:00:07]} Rd8 {[%emt 0:00:04]} 70. Kg3 {[%emt 0:01:07]} Kf5 {[%emt 0:00:16]} 71. Rb5 {[%emt 0:00:36]} f6 {[%emt 0:02:29]} 72. Kf3 {[%emt 0:01:01]} fxe5 {[%emt 0:00:33]} 73. Ke3 {[%emt 0:00:09]} Kf6 {[%emt 0:00:37]} 74. Ke4 {[%emt 0:00:47]} Rd4+ {[%emt 0:00:08]} 75. Ke3 {[%emt 0:00:04]} Rd8 {[%emt 0:00:04]} 76. b7 {[%emt 0:01:24]} Rb8 {[%emt 0:00:06]} 77. Ke4 {[%emt 0:00:18]} Ke7 {[%emt 0:00:04]} 78. Kxe5 {[%emt 0:00:10]} Kd7 {[%emt 0:00:04]} 79. Rb1 {[%emt 0:00:10]} Kc7 {[%emt 0:00:09]} 80. Kxe6 {[%emt 0:00:05]} Rxb7 1/2-1/2

[Event "12th SRB-ch Women 2018"]
[Site "Kragujevac"]
[Date "2018.03.19"]
[Round "3"]
[White "Blagojevic, Tijana"]
[Black "Zarkovic, Mila"]
[Result "1/2-1/2"]
[ECO "B40"]
[WhiteElo "2249"]
[BlackElo "2219"]
[Annotator "NA"]
[PlyCount "35"]
[EventDate "2018.??.??"]
[EventType "tourn"]
[EventCountry "SRB"]
[SourceTitle "playchess.com"]
[Source "ChessBase"]
[SourceQuality "1"]
[TimeControl "40/5400+30:1800+30"]

1. e4 {[%emt 0:00:00]} c5 {[%emt 0:00:01]} 2. Nf3 {[%emt 0:00:00]} e6 {[%emt 0:00:03]} 3. d4 {[%emt 0:00:00]} cxd4 {[%emt 0:00:04]} 4. Nxd4 {[%emt 0:00:00]} d6 {[%emt 0:00:06]} 5. g3 {[%emt 0:00:00]} Nf6 {[%emt 0:00:06]} 6. Bg2 {[%emt 0:00:00]} Be7 {[%emt 0:00:05]} 7. O-O {[%emt 0:00:01]} O-O {[%emt 0:00:06]} 8. Nc3 {[%emt 0:00:10]} a6 {[%emt 0:00:06]} 9. Be3 {[%emt 0:00:06]} Nc6 {[%emt 0:00:06]} 10. f4 {[%emt 0:00:07]} Nxd4 {[%emt 0:00:04]} 11. Bxd4 {[%emt 0:00:03]} e5 {[%emt 0:00:13]} 12. fxe5 {[%emt 0:00:02]} dxe5 {[%emt 0:00:11]} 13. Be3 {[%emt 0:00:15]} Be6 {[%emt 0:00:05]} 14. Qxd8 {[%emt 0:00:06]} Raxd8 {[%emt 0:00:05]} 15. Rad1 {[%emt 0:00:06]} Rxd1 {[%emt 0:00:04]} 16. Rxd1 {[%emt 0:00:03]} Rd8 {[%emt 0:00:04]} 17. Rxd8+ {[%emt 0:00:02]} Bxd8 {[%emt 0:00:06]} 18. Nd5 {[%emt 0:00:03]} 1/2-1/2

[Event "12th SRB-ch Women 2018"]
[Site "Kragujevac"]
[Date "2018.03.22"]
[Round "6"]
[White "Gajcin, Marina"]
[Black "Milosevic, Jovana"]
[Result "1-0"]
[ECO "C41"]
[WhiteElo "2295"]
[BlackElo "2109"]
[Annotator "RC"]
[PlyCount "71"]
[EventDate "2018.??.??"]
[EventType "tourn"]
[EventCountry "SRB"]
[SourceTitle "playchess.com"]
[Source "ChessBase"]
[SourceQuality "1"]
[TimeControl "40/5400+30:1800+30"]

1. e4 {[%emt 0:00:00]} d6 {[%emt 0:00:05]} 2. d4 {[%emt 0:00:00]} Nf6 {[%emt 0:00:06]} 3. Nc3 {[%emt 0:00:00]} e5 {[%emt 0:00:05]} 4. Nf3 {[%emt 0:00:00]} Nbd7 {[%emt 0:00:06]} 5. Bc4 {[%emt 0:00:07]} Be7 {[%emt 0:00:08]} 6. O-O {[%emt 0:01:08]} O-O {[%emt 0:00:06]} 7. a4 {[%emt 0:01:20]} a5 {[%emt 0:00:06]} 8. Re1 {[%emt 0:03:56]} c6 {[%emt 0:00:08]} 9. Bf1 {[%emt 0:16:36]} Re8 {[%emt 0:07:55]} 10. b3 {[%emt 0:05:11]} Qc7 {[%emt 0:01:24]} 11. Ba3 {[%emt 0:07:41]} Nf8 {[%emt 0:00:15]} 12. h3 {[%emt 0:08:06]} h6 {[%emt 0:08:07]} 13. Qd2 {[%emt 0:05:36]} Be6 {[%emt 0:04:07]} 14. Rad1 {[%emt 0:03:55]} Rad8 {[%emt 0:05:00]} 15. Qc1 {[%emt 0:00:54]} Ng6 {[%emt 0:00:31]} 16. g3 {[%emt 0:06:33]} Bf8 {[%emt 0:54:18]} 17. Bg2 {[%emt 0:04:13]} Qc8 {[%emt 0:08:52]} 18. Kh2 {[%emt 0:00:51]} Qc7 {[%emt 0:06:47]} 19. Qb2 {[%emt 0:07:00]} Nh7 {[%emt 0:00:20]} 20. Rd2 {[%emt 0:04:10]} Be7 {[%emt 0:00:45]} 21. d5 {[%emt 0:06:25]} Bd7 {[%emt 0:00:46]} 22. Red1 {[%emt 0:00:31]} c5 {[%emt 0:00:08]} 23. Re2 {[%emt 0:00:40]} f5 {[%emt 0:00:54]} 24. exf5 {[%emt 0:01:28]} Bxf5 {[%emt 0:00:06]} 25. Nd2 {[%emt 0:00:48]} h5 {[%emt 0:00:49]} 26. Be4 {[%emt 0:00:46]} Qc8 {[%emt 0:00:18]} 27. Nc4 {[%emt 0:01:47]} Bxe4 {[%emt 0:00:54]} 28. Nxe4 {[%emt 0:00:08]} Qc7 {[%emt 0:00:49]} 29. Qc3 {[%emt 0:00:30]} b6 {[%emt 0:00:27]} 30. Qf3 {[%emt 0:00:24]} Nf6 {[%emt 0:00:29]} 31. Nxf6+ {[%emt 0:00:42]} gxf6 {[%emt 0:00:07]} 32. Qxh5 {[%emt 0:01:10]} Kg7 {[%emt 0:00:10]} 33. Bc1 {[%emt 0:01:27]} Rh8 {[%emt 0:00:05]} 34. Qf5 {[%emt 0:00:21]} Rh7 {[%emt 0:01:02]} 35. Re4 {[%emt 0:01:49]} Rdh8 {[%emt 0:00:11]} 36. Rg4 {[%emt 0:00:21]} 1-0

[Event "12th SRB-ch Women 2018"]
[Site "Kragujevac"]
[Date "2018.03.22"]
[Round "6"]
[White "Velikic, Adela"]
[Black "Chelushkina, Irina"]
[Result "1-0"]
[ECO "B33"]
[WhiteElo "2293"]
[BlackElo "2261"]
[Annotator "RC"]
[PlyCount "73"]
[EventDate "2018.??.??"]
[EventType "tourn"]
[EventCountry "SRB"]
[SourceTitle "playchess.com"]
[Source "ChessBase"]
[SourceQuality "1"]
[TimeControl "40/5400+30:1800+30"]

1. e4 {[%emt 0:00:00]} c5 {[%emt 0:01:40]} 2. Nf3 {[%emt 0:00:00]} Nc6 {[%emt 0:00:46]} 3. d4 {[%emt 0:00:00]} cxd4 {[%emt 0:00:05]} 4. Nxd4 {[%emt 0:00:00]} Nf6 {[%emt 0:00:08]} 5. Nc3 {[%emt 0:00:00]} e5 {[%emt 0:00:02]} 6. Ndb5 {[%emt 0:00:05]} d6 {[%emt 0:00:04]} 7. Bg5 {[%emt 0:00:13]} a6 {[%emt 0:00:04]} 8. Na3 {[%emt 0:00:05]} b5 {[%emt 0:00:18]} 9. Bxf6 {[%emt 0:00:15]} gxf6 {[%emt 0:00:39]} 10. Nd5 {[%emt 0:00:16]} Bg7 {[%emt 0:00:25]} 11. Bd3 {[%emt 0:00:26]} Ne7 {[%emt 0:02:02]} 12. Nxe7 {[%emt 0:00:26]} Qxe7 {[%emt 0:01:02]} 13. c4 {[%emt 0:00:29]} f5 {[%emt 0:06:50]} 14. O-O {[%emt 0:11:20]} O-O {[%emt 0:03:26]} 15. Qf3 {[%emt 0:10:45]} d5 {[%emt 0:39:29]} 16. cxd5 {[%emt 0:08:09]} f4 {[%emt 0:01:30]} 17. Nb1 {[%emt 0:12:26]} Rb8 {[%emt 0:01:20]} 18. Nd2 {[%emt 0:14:19]} Rb6 {[%emt 0:01:36]} 19. Rfc1 {[%emt 0:00:53]} Rg6 {[%emt 0:02:53]} 20. Bf1 {[%emt 0:02:03]} Rd8 {[%emt 0:15:17]} 21. Qa3 {[%emt 0:09:13]} Qxa3 {[%emt 0:09:23]} 22. bxa3 {[%emt 0:00:04]} Bf8 {[%emt 0:00:12]} 23. a4 {[%emt 0:02:28]} Bd7 {[%emt 0:00:21]} 24. Rab1 {[%emt 0:03:00]} Ba3 {[%emt 0:04:03]} 25. Rc3 {[%emt 0:05:21]} b4 {[%emt 0:00:30]} 26. Rc7 {[%emt 0:00:30]} Bxa4 {[%emt 0:01:05]} 27. Nc4 {[%emt 0:00:13]} f3 {[%emt 0:02:19]} 28. g3 {[%emt 0:07:53]} Bc2 {[%emt 0:05:06]} 29. Nxa3 {[%emt 0:01:06]} Bxb1 {[%emt 0:00:05]} 30. Nxb1 {[%emt 0:00:04]} Rb6 {[%emt 0:00:03]} 31. Nd2 {[%emt 0:01:11]} Rdb8 {[%emt 0:00:37]} 32. Nxf3 {[%emt 0:06:15]} f6 {[%emt 0:00:06]} 33. Nd2 {[%emt 0:00:44]} a5 {[%emt 0:00:19]} 34. Ra7 {[%emt 0:00:56]} Rc8 {[%emt 0:01:12]} 35. Bc4 {[%emt 0:01:29]} Rc5 {[%emt 0:00:47]} 36. d6+ {[%emt 0:00:40]} Kf8 {[%emt 0:00:04]} 37. Ra8+ {[%emt 0:00:08]} 1-0

[Event "12th SRB-ch Women 2018"]
[Site "Kragujevac"]
[Date "2018.03.22"]
[Round "6"]
[White "Eric, Jovana"]
[Black "Benderac, Ana"]
[Result "1-0"]
[ECO "B06"]
[WhiteElo "2265"]
[BlackElo "2226"]
[Annotator "RC"]
[PlyCount "71"]
[EventDate "2018.??.??"]
[EventType "tourn"]
[EventCountry "SRB"]
[SourceTitle "playchess.com"]
[Source "ChessBase"]
[SourceQuality "1"]
[TimeControl "40/5400+30:1800+30"]

1. e4 {[%emt 0:00:00]} g6 {[%emt 0:00:07]} 2. d4 {[%emt 0:00:00]} Bg7 {[%emt 0:00:09]} 3. Nc3 {[%emt 0:00:00]} c6 {[%emt 0:00:24]} 4. Nf3 {[%emt 0:00:27]} d5 {[%emt 0:01:21]} 5. h3 {[%emt 0:00:37]} dxe4 {[%emt 0:03:59]} 6. Nxe4 {[%emt 0:00:06]} Nd7 {[%emt 0:03:48]} 7. Bc4 {[%emt 0:01:50]} Ngf6 {[%emt 0:05:57]} 8. Nxf6+ {[%emt 0:07:57]} Nxf6 {[%emt 0:00:17]} 9. O-O {[%emt 0:00:12]} O-O {[%emt 0:00:32]} 10. Bf4 {[%emt 0:01:59]} Nd5 {[%emt 0:00:57]} 11. Bg3 {[%emt 0:03:03]} h6 {[%emt 0:02:06]} 12. Bb3 {[%emt 0:00:38]} a5 {[%emt 0:06:10]} 13. c4 {[%emt 0:04:24]} Nb6 {[%emt 0:01:46]} 14. a3 {[%emt 0:00:27]} Be6 {[%emt 0:04:59]} 15. Qe2 {[%emt 0:01:39]} a4 {[%emt 0:02:31]} 16. Ba2 {[%emt 0:00:15]} Ra5 {[%emt 0:02:10]} 17. Rfd1 {[%emt 0:03:17]} Rh5 {[%emt 0:02:06]} 18. Rac1 {[%emt 0:05:49]} Bf6 {[%emt 0:22:46]} 19. Ne5 {[%emt 0:11:21]} Bxe5 {[%emt 0:10:08]} 20. Bxe5 {[%emt 0:00:43]} Nd7 {[%emt 0:01:51]} 21. Bh2 {[%emt 0:17:46]} Nf6 {[%emt 0:00:35]} 22. Rc3 {[%emt 0:04:29]} b5 {[%emt 0:08:40]} 23. d5 {[%emt 0:00:43]} cxd5 {[%emt 0:00:09]} 24. cxb5 {[%emt 0:01:22]} d4 {[%emt 0:05:29]} 25. Bxe6 {[%emt 0:01:52]} dxc3 {[%emt 0:00:16]} 26. Rxd8 {[%emt 0:00:14]} Rxd8 {[%emt 0:00:04]} 27. bxc3 {[%emt 0:02:00]} Rxb5 {[%emt 0:08:04]} 28. Be5 {[%emt 0:02:58]} Rxe5 {[%emt 0:05:28]} 29. Qxe5 {[%emt 0:00:15]} fxe6 {[%emt 0:00:03]} 30. Qxe6+ {[%emt 0:00:06]} Kf8 {[%emt 0:00:03]} 31. c4 {[%emt 0:01:19]} Rd6 {[%emt 0:01:18]} 32. Qc8+ {[%emt 0:00:59]} Kf7 {[%emt 0:00:04]} 33. Qa8 {[%emt 0:00:42]} Rd4 {[%emt 0:02:11]} 34. Qxa4 {[%emt 0:00:19]} Ke6 {[%emt 0:00:31]} 35. Qb3 {[%emt 0:01:16]} Ne4 {[%emt 0:00:27]} 36. Qe3 {[%emt 0:01:04]} 1-0

[Event "12th SRB-ch Women 2018"]
[Site "Kragujevac"]
[Date "2018.03.22"]
[Round "6"]
[White "Zarkovic, Mila"]
[Black "Injac, Teodora"]
[Result "1/2-1/2"]
[ECO "C12"]
[WhiteElo "2219"]
[BlackElo "2291"]
[Annotator "RC"]
[PlyCount "84"]
[EventDate "2018.??.??"]
[EventType "tourn"]
[EventCountry "SRB"]
[SourceTitle "playchess.com"]
[Source "ChessBase"]
[SourceQuality "1"]
[TimeControl "40/5400+30:1800+30"]

1. e4 {[%emt 0:00:00]} e6 {[%emt 0:00:13]} 2. d4 {[%emt 0:00:00]} d5 {[%emt 0:00:06]} 3. Nc3 {[%emt 0:00:00]} Nf6 {[%emt 0:00:22]} 4. Bg5 {[%emt 0:00:00]} Bb4 {[%emt 0:00:16]} 5. exd5 {[%emt 0:00:14]} Qxd5 {[%emt 0:00:46]} 6. Bxf6 {[%emt 0:01:21]} gxf6 {[%emt 0:00:07]} 7. Nge2 {[%emt 0:00:52]} Nc6 {[%emt 0:01:18]} 8. Qd3 {[%emt 0:01:22]} Bd7 {[%emt 0:02:10]} 9. O-O-O {[%emt 0:00:14]} Qa5 {[%emt 0:00:10]} 10. a3 {[%emt 0:17:14]} Be7 {[%emt 0:01:21]} 11. f4 {[%emt 0:05:36]} O-O-O {[%emt 0:01:25]} 12. g3 {[%emt 0:22:25]} f5 {[%emt 0:03:48]} 13. Bg2 {[%emt 0:04:35]} Bf6 {[%emt 0:02:31]} 14. Qc4 {[%emt 0:06:38]} Ne7 {[%emt 0:17:38]} 15. Kb1 {[%emt 0:07:28]} Kb8 {[%emt 0:06:33]} 16. Nc1 {[%emt 0:03:43]} Qb6 {[%emt 0:06:45]} 17. Nb3 {[%emt 0:07:39]} c6 {[%emt 0:18:09]} 18. Rhe1 {[%emt 0:04:04]} h5 {[%emt 0:00:51]} 19. Nc5 {[%emt 0:00:53]} Bc8 {[%emt 0:00:50]} 20. Re3 {[%emt 0:01:30]} Ka8 {[%emt 0:03:06]} 21. N5a4 {[%emt 0:05:30]} Qa5 {[%emt 0:13:24]} 22. Red3 {[%emt 0:01:08]} Kb8 {[%emt 0:00:56]} 23. Nc5 {[%emt 0:00:42]} Nd5 {[%emt 0:02:35]} 24. Ne2 {[%emt 0:04:14]} b6 {[%emt 0:05:53]} 25. Nb3 {[%emt 0:04:34]} Qa6 {[%emt 0:01:02]} 26. Bxd5 {[%emt 0:00:03]} cxd5 {[%emt 0:00:43]} 27. Qb4 {[%emt 0:00:07]} Qb7 {[%emt 0:01:43]} 28. Ng1 {[%emt 0:00:21]} a5 {[%emt 0:02:40]} 29. Qe1 {[%emt 0:00:24]} a4 {[%emt 0:01:44]} 30. Nc1 {[%emt 0:00:02]} Bd7 {[%emt 0:01:49]} 31. Nf3 {[%emt 0:00:02]} Bb5 {[%emt 0:00:09]} 32. Rc3 {[%emt 0:00:33]} Rhg8 {[%emt 0:01:57]} 33. Ne5 {[%emt 0:00:30]} h4 {[%emt 0:00:24]} 34. Na2 {[%emt 0:00:30]} hxg3 {[%emt 0:00:27]} 35. hxg3 {[%emt 0:00:23]} Rh8 {[%emt 0:01:04]} 36. Nb4 {[%emt 0:00:07]} Ka8 {[%emt 0:00:29]} 37. Qe3 {[%emt 0:02:54]} Rh2 {[%emt 0:00:37]} 38. Rd2 {[%emt 0:00:33]} Rh1+ {[%emt 0:01:16]} 39. Ka2 {[%emt 0:00:01]} Rdh8 {[%emt 0:01:00]} 40. Nbd3 {[%emt 0:00:33]} Rf1 {[%emt 0:31:34]} 41. Nf2 {[%emt 0:30:58]} Rh2 {[%emt 0:00:00]} 42. b3 {[%emt 0:00:00]} Bg7 {[%emt 0:00:00]} 1/2-1/2

[Event "12th SRB-ch Women 2018"]
[Site "Kragujevac"]
[Date "2018.03.24"]
[Round "8"]
[White "Velikic, Adela"]
[Black "Zarkovic, Mila"]
[Result "0-1"]
[ECO "C41"]
[WhiteElo "2293"]
[BlackElo "2219"]
[Annotator "ChessBase"]
[PlyCount "90"]
[EventDate "2018.??.??"]
[EventType "tourn"]
[EventCountry "SRB"]
[SourceTitle "playchess.com"]
[Source "ChessBase"]
[SourceQuality "1"]
[TimeControl "40/5400+30:1800+30"]

1. e4 {[%emt 0:00:00]} d6 {[%emt 0:00:15]} 2. d4 {[%emt 0:00:00]} Nf6 {[%emt 0:00:09]} 3. Nc3 {[%emt 0:00:00]} e5 {[%emt 0:00:05]} 4. Nf3 {[%emt 0:00:00]} Nbd7 {[%emt 0:00:42]} 5. Bc4 {[%emt 0:00:00]} Be7 {[%emt 0:00:09]} 6. a4 {[%emt 0:00:07]} O-O {[%emt 0:00:14]} 7. O-O {[%emt 0:00:08]} a6 {[%emt 0:00:25]} 8. a5 {[%emt 0:04:55]} exd4 {[%emt 0:00:07]} 9. Nxd4 {[%emt 0:01:41]} Ne5 {[%emt 0:00:25]} 10. Be2 {[%emt 0:03:52]} c5 {[%emt 0:02:26]} 11. Nf3 {[%emt 0:31:38]} Nc6 {[%emt 0:10:50]} 12. Bf4 {[%emt 0:04:05]} Nxa5 {[%emt 0:21:30]} 13. Nd5 {[%emt 0:09:30]} Nxd5 {[%emt 0:04:00]} 14. exd5 {[%emt 0:00:20]} Bf6 {[%emt 0:31:31]} 15. Ra2 {[%emt 0:13:05]} Bg4 {[%emt 0:08:18]} 16. Qd2 {[%emt 0:11:14]} b6 {[%emt 0:03:06]} 17. b4 {[%emt 0:02:27]} cxb4 {[%emt 0:04:10]} 18. Qxb4 {[%emt 0:00:13]} Re8 {[%emt 0:00:52]} 19. Be3 {[%emt 0:01:24]} Bxf3 {[%emt 0:01:22]} 20. Bxf3 {[%emt 0:03:30]} Rb8 {[%emt 0:01:02]} 21. Rb1 {[%emt 0:00:56]} Qc7 {[%emt 0:01:33]} 22. Be2 {[%emt 0:02:07]} Bc3 {[%emt 0:04:20]} 23. Qh4 {[%emt 0:05:53]} b5 {[%emt 0:00:15]} 24. Bd3 {[%emt 0:00:12]} g6 {[%emt 0:01:02]} 25. Ra3 {[%emt 0:01:10]} Bg7 {[%emt 0:00:38]} 26. Bd2 {[%emt 0:01:17]} Nc4 {[%emt 0:00:40]} 27. Bxc4 {[%emt 0:00:57]} bxc4 {[%emt 0:01:55]} 28. Rxb8 {[%emt 0:01:29]} Rxb8 {[%emt 0:00:18]} 29. h3 {[%emt 0:01:04]} Qc5 {[%emt 0:00:19]} 30. Rxa6 {[%emt 0:00:52]} Qxd5 {[%emt 0:00:04]} 31. Bf4 {[%emt 0:00:41]} Be5 {[%emt 0:00:41]} 32. Kh2 {[%emt 0:00:31]} Qe4 {[%emt 0:00:46]} 33. g3 {[%emt 0:00:26]} Qxc2 {[%emt 0:00:53]} 34. Be3 {[%emt 0:00:07]} c3 {[%emt 0:00:24]} 35. Qc4 {[%emt 0:00:50]} Qf5 {[%emt 0:00:27]} 36. Qc7 {[%emt 0:00:38]} Rc8 {[%emt 0:00:21]} 37. Qb7 {[%emt 0:00:25]} c2 {[%emt 0:00:19]} 38. Rc6 {[%emt 0:00:38]} Rxc6 {[%emt 0:00:36]} 39. Qxc6 {[%emt 0:00:01]} Kg7 {[%emt 0:00:16]} 40. Kg2 {[%emt 0:00:17]} Qd3 {[%emt 0:30:32]} 41. h4 {[%emt 0:05:08]} Bb2 {[%emt 0:00:00]} 42. h5 {[%emt 0:01:40]} Qxe3 {[%emt 0:00:00]} 43. fxe3 {[%emt 0:01:53]} c1=Q {[%emt 0:00:00]} 44. Qxd6 {[%emt 0:00:06]} Qxe3 {[%emt 0:00:00]} 45. hxg6 {[%emt 0:00:18]} Be5 {[%emt 0:00:00]} 0-1